fUST/lending_fUST_20240330
["ID","MTS","AMOUNT","RATE_DAILY","PERIOD"]
[321018323,1711777183832,1023.21,0.00032,2]
[321018379,1711777832173,-155.0,0.00038999,4]
[321018380,1711777832184,-265.26550825,0.00039,2]
[321018381,1711777832194,-1508.0,0.00039,2]
[321018382,1711777832203,-190.728728,0.00039195,120]
[321018383,1711777832213,-270.86404325,0.0004,30]
[321018384,1711777832222,-162.517667,0.0004,2]
[321018385,1711777832232,-162.0,0.0004,2]
[321018386,1711777832242,-152.93989175,0.00040041,2]
[321018387,1711777832252,-500.0,0.00040294,5]
[321018388,1711777832261,-2374.43072447,0.00040475,2]
[321018389,1711777832270,-7039.38705492,0.0004075,2]
[321018499,1711777838095,-11218.96333715,0.0004075,2]
[321018500,1711777838107,-5000.0,0.00040777,2]
[321018501,1711777838118,-1000.0,0.00040793,2]
[321018502,1711777838128,-155.36717342,0.00040889,4]
[321018503,1711777838138,-309.87297944,0.00040889,4]
[321018504,1711777838147,-501.30983933,0.00040889,4]
[321018505,1711777838156,-272.92075644,0.00040889,4]
[321018506,1711777838166,-328.77322779,0.0004089,2]
[321018555,1711777843579,-4671.22677221,0.0004089,2]
[321018556,1711777843589,-5000.0,0.0004089,2]
[321018557,1711777843599,-547.40979062,0.0004089,31]
[321018558,1711777843610,-14283.16847665,0.00040891,4]
[321018559,1711777843620,-45705.72894911,0.00040891,2]
[321018560,1711777843630,-2852.00128309,0.00040891,3]
[321018561,1711777843640,-9512.66851324,0.00040891,3]
[321018562,1711777843650,-7429.19962881,0.00040891,14]
[321018563,1711777843666,-86867.31423346,0.00040891,14]
[321018564,1711777843678,-55775.13598163,0.00040891,14]
[321018565,1711777843687,-7800.04263709,0.00040891,2]
[321018566,1711777843697,-2185.96366455,0.00040891,2]
[321018567,1711777843706,-1021.77091974,0.00040891,2]
[321018568,1711777843716,-3510.49057031,0.00040891,2]
[321018569,1711777843725,-18892.30846561,0.00040891,2]
[321018570,1711777843735,-871.44117996,0.00040891,2]
[321018571,1711777843745,-2435.27047083,0.00040892,2]
[321018572,1711777843754,-2000.0,0.00041,30]
[321018573,1711777843764,-2466.786264,0.0004101,30]
[321018574,1711777843773,-150.0,0.00041041,2]
[321018575,1711777843782,-166.666666,0.00041096,2]
[321018576,1711777843791,-415.89548504,0.00041096,31]
[321018577,1711777843801,-171.07114462,0.00041281,4]
[321018578,1711777843810,-247.0744216,0.00041507,2]
[321018579,1711777843820,-153.0,0.00041507,2]
[321018580,1711777843829,-153.0,0.00041507,2]
[321018581,1711777843838,-153.0,0.00041507,2]
[321018582,1711777843848,-153.0,0.00041507,2]
[321018583,1711777843858,-153.0,0.00041507,2]
[321018584,1711777843867,-153.0,0.00041507,2]
[321018585,1711777843876,-153.0,0.00041507,2]
[321018586,1711777843885,-153.0,0.00041507,2]
[321018587,1711777843895,-153.0,0.00041507,2]
[321018588,1711777843905,-166.666666,0.00042058,2]
[321018589,1711777843914,-160.0,0.00042867,3]
[321018590,1711777843923,-1017.90518252,0.00042869,30]
[321018591,1711777843933,-166.666666,0.00043019,2]
[321018592,1711777843943,-153.0,0.00043151,2]
[321018593,1711777843952,-251.9850721,0.00043151,2]
[321018594,1711777843961,-261.8873217,0.00043151,2]
[321018595,1711777843970,-237.4354276,0.00043151,2]
[321018596,1711777843979,-153.0,0.00043151,2]
[321018597,1711777843989,-202.1506933,0.00043151,2]
[321018598,1711777843998,-153.0,0.00043151,2]
[321018599,1711777844009,-153.0,0.00043151,2]
[321018600,1711777844021,-153.0,0.00043151,2]
[321018601,1711777844030,-153.0,0.00043151,2]
[321018602,1711777844039,-153.0,0.00043151,2]
[321018603,1711777844049,-202.1506933,0.00043151,2]
[321018604,1711777844061,-153.0,0.00043151,2]
[321018605,1711777844070,-202.1506933,0.00043151,2]
[321018606,1711777844079,-153.0,0.00043151,2]
[321018607,1711777844091,-153.0,0.00043151,2]
[321018608,1711777844102,-153.0,0.00043151,2]
[321018609,1711777844112,-153.0,0.00043151,2]
[321018610,1711777844122,-153.0,0.00043151,2]
[321018611,1711777844132,-153.0,0.00043151,2]
[321018612,1711777844145,-202.1506933,0.00043151,2]
[321018613,1711777844155,-153.0,0.00043151,2]
[321018614,1711777844165,-202.1506933,0.00043151,2]
[321018615,1711777844174,-153.0,0.00043151,2]
[321018616,1711777844184,-153.0,0.00043151,2]
[321018617,1711777844193,-202.1506933,0.00043151,2]
[321018618,1711777844202,-153.0,0.00043151,2]
[321018619,1711777844213,-153.0,0.00043151,2]
[321018620,1711777844224,-153.0,0.00043151,2]
[321018621,1711777844233,-202.1506933,0.00043151,2]
[321018622,1711777844243,-153.0,0.00043151,2]
[321018623,1711777844254,-153.0,0.00043151,2]
[321018624,1711777844264,-202.1506933,0.00043151,2]
[321018625,1711777844273,-153.0,0.00043151,2]
[321018626,1711777844282,-153.0,0.00043151,2]
[321018627,1711777844291,-404.3013866,0.00043151,2]
[321018628,1711777844301,-160.0,0.0004322,4]
[321018629,1711777844310,-160.0,0.00043574,5]
[321018630,1711777844319,-160.0,0.00043927,6]
[321018631,1711777844328,-306.0,0.00043973,2]
[321018632,1711777844338,-153.0,0.00043973,2]
[321018633,1711777844347,-153.0,0.00043973,2]
[321018634,1711777844357,-202.1506933,0.00043973,2]
[321018635,1711777844366,-153.0,0.00043973,2]
[321018636,1711777844377,-153.0,0.00043973,2]
[321018637,1711777844387,-153.0,0.00043973,2]
[321018638,1711777844399,-202.1506933,0.00043973,2]
[321018639,1711777844410,-153.0,0.00043973,2]
[321018640,1711777844419,-153.0,0.00043973,2]
[321018641,1711777844428,-202.1506933,0.00043973,2]
[321018642,1711777844438,-153.0,0.00043973,2]
[321018643,1711777844447,-153.0,0.00043973,2]
[321018644,1711777844456,-202.1506933,0.00043973,2]
[321018645,1711777844465,-153.0,0.00043973,2]
[321018646,1711777844475,-158.6908753,0.00043973,2]
[321018647,1711777844483,-202.1506933,0.00043973,2]
[321018648,1711777844492,-153.0,0.00043973,2]
[321018649,1711777844505,-202.1506933,0.00043973,2]
[321018650,1711777844514,-202.1506933,0.00043973,2]
[321018651,1711777844523,-153.0,0.00043973,2]
[321018652,1711777844532,-166.666666,0.00043981,2]
[321018653,1711777844542,-505.0,0.00044,120]
[321018654,1711777844551,-160.0,0.0004428,7]
[321018655,1711777844560,-160.0,0.00044633,8]
[321018656,1711777844570,-153.0,0.00044795,2]
[321018657,1711777844582,-153.0,0.00044795,2]
[321018658,1711777844592,-153.0,0.00044795,2]
[321018659,1711777844602,-153.0,0.00044795,2]
[321018660,1711777844611,-153.0,0.00044795,2]
[321018661,1711777844620,-153.0,0.00044795,2]
[321018662,1711777844630,-153.0,0.00044795,2]
[321018663,1711777844639,-153.0,0.00044795,2]
[321018664,1711777844649,-153.0,0.00044795,2]
[321018665,1711777844659,-153.0,0.00044795,2]
[321018666,1711777844669,-153.0,0.00044795,2]
[321018667,1711777844678,-153.0,0.00044795,2]
[321018668,1711777844745,-264.0173865,0.00044795,2]
[321018669,1711777844755,-153.0,0.00044795,2]
[321018670,1711777844764,-153.0,0.00044795,2]
[321018671,1711777844773,-153.0,0.00044795,2]
[321018672,1711777844782,-153.0,0.00044795,2]
[321018673,1711777844792,-153.0,0.00044795,2]
[321018674,1711777844801,-153.0,0.00044795,2]
[321018675,1711777844811,-206.3134763,0.00044795,2]
[321018676,1711777844821,-153.0,0.00044795,2]
[321018677,1711777844830,-153.0,0.00044795,2]
[321018678,1711777844839,-153.0,0.00044795,2]
[321018679,1711777844849,-306.0,0.00044795,2]
[321018680,1711777844859,-166.666666,0.00044942,2]
[321018681,1711777844868,-160.0,0.00044987,9]
[321018682,1711777844878,-998.0,0.00045125,30]
[321018683,1711777844887,-192.1470888,0.00045288,2]
[321018684,1711777844897,-153.0,0.00045288,2]
[321018685,1711777844906,-153.0,0.00045288,2]
[321018686,1711777844915,-153.0,0.00045288,2]
[321018687,1711777844924,-153.0,0.00045288,2]
[321018688,1711777844933,-153.0,0.00045288,2]
[321018689,1711777844943,-153.0,0.00045288,2]
[321018690,1711777844952,-153.0,0.00045288,2]
[321018691,1711777844961,-153.0,0.00045288,2]
[321018692,1711777844971,-160.0,0.0004534,10]
[321018693,1711777844980,-153.0,0.00045616,2]
[321018694,1711777844989,-153.0,0.00045616,2]
[321018695,1711777844999,-153.0,0.00045616,2]
[321018696,1711777845010,-153.0,0.00045616,2]
[321018697,1711777845021,-153.0,0.00045616,2]
[321018698,1711777845030,-153.0,0.00045616,2]
[321018699,1711777845039,-153.0,0.00045616,2]
[321018700,1711777845048,-153.0,0.00045616,2]
[321018701,1711777845058,-153.0,0.00045616,2]
[321018702,1711777845067,-153.0,0.00045616,2]
[321018703,1711777845076,-153.0,0.00045616,2]
[321018704,1711777845086,-153.0,0.00045616,2]
[321018705,1711777845096,-153.0,0.00045616,2]
[321018706,1711777845106,-153.0,0.00045616,2]
[321018707,1711777845115,-153.0,0.00045616,2]
[321018708,1711777845124,-153.0,0.00045616,2]
[321018709,1711777845132,-153.0,0.00045616,2]
[321018710,1711777845142,-153.0,0.00045616,2]
[321018711,1711777845151,-153.0,0.00045616,2]
[321018712,1711777845160,-153.0,0.00045616,2]
[321018713,1711777845171,-306.0,0.00045616,2]
[321018714,1711777845181,-153.0,0.00045616,2]
[321018715,1711777845192,-153.0,0.00045616,2]
[321018716,1711777845202,-153.0,0.00045616,2]
[321018717,1711777845213,-153.0,0.00045616,2]
[321018718,1711777845226,-5000.0,0.00045672,2]
[321018719,1711777845236,-160.0,0.00045693,11]
[321018720,1711777845245,-166.666666,0.00045904,2]
[321018721,1711777845255,-11540.20663128,0.00046,2]
[321018722,1711777845265,-153.544126,0.00046,7]
[321018723,1711777845275,-151.0,0.00046,7]
[321018724,1711777845285,-160.0,0.00046047,12]
[321018725,1711777845294,-153.0,0.0004611,2]
[321018726,1711777845305,-153.0,0.0004611,2]
[321018727,1711777845315,-153.0,0.0004611,2]
[321018728,1711777845325,-153.0,0.0004611,2]
[321018729,1711777845335,-153.0,0.0004611,2]
[321018730,1711777845346,-153.0,0.0004611,2]
[321018731,1711777845355,-153.0,0.0004611,2]
[321018732,1711777845365,-153.0,0.0004611,2]
[321018733,1711777845374,-153.0,0.0004611,2]
[321018734,1711777845383,-153.0,0.0004611,2]
[321018735,1711777845391,-153.0,0.0004611,2]
[321018736,1711777845401,-500.0,0.000462,20]
[321018737,1711777845410,-160.0,0.000464,13]
[321018738,1711777845420,-151.0,0.00046438,7]
[321018739,1711777845429,-151.0,0.00046438,7]
[321018740,1711777845438,-364.157193,0.00046438,7]
[321018741,1711777845448,-364.157193,0.00046438,7]
[321018742,1711777845457,-151.0,0.00046438,7]
[321018743,1711777845466,-153.0,0.00046438,2]
[321018744,1711777845475,-153.0,0.00046438,2]
[321018746,1711777845484,-153.0,0.00046438,2]
[321018748,1711777845494,-153.0,0.00046438,2]
[321018749,1711777845503,-153.0,0.00046438,2]
[321018750,1711777845512,-153.0,0.00046438,2]
[321018751,1711777845521,-153.0,0.00046438,2]
[321018752,1711777845530,-153.0,0.00046438,2]
[321018754,1711777845539,-153.0,0.00046438,2]
[321018755,1711777845549,-153.0,0.00046438,2]
[321018756,1711777845558,-153.0,0.00046438,2]
[321018757,1711777845567,-270.1460579,0.00046438,2]
[321018758,1711777845577,-153.0,0.00046438,2]
[321018759,1711777845586,-153.0,0.00046438,2]
[321018760,1711777845595,-153.0,0.00046438,2]
[321018762,1711777845605,-153.0,0.00046438,2]
[321018764,1711777845614,-508.48214,0.00046575,2]
[321018765,1711777845623,-160.0,0.00046753,14]
[321018766,1711777845632,-2371.76787449,0.000468,90]
[321018767,1711777845642,-5604.0,0.00047,120]
[321018768,1711777845651,-183.0,0.00047,90]
[321018770,1711777845660,-160.0,0.00047106,15]
[321018772,1711777845669,-470.0,0.000472,23]
[321018774,1711777845678,-163.161871,0.00047256,30]
[321018775,1711777845687,-196.843309,0.00047256,30]
[321018776,1711777845695,-1546.845017,0.00047256,30]
[321018777,1711777845704,-652.73846,0.00047256,30]
[321018778,1711777845713,-568.146578,0.00047256,30]
[321018779,1711777845722,-188.397758,0.00047256,30]
[321018780,1711777845732,-153.0,0.0004726,2]
[321018781,1711777845741,-153.0,0.0004726,2]
[321018782,1711777845750,-153.0,0.0004726,2]
[321018783,1711777845759,-153.0,0.0004726,2]
[321018784,1711777845768,-153.0,0.0004726,2]
[321018785,1711777845778,-153.0,0.0004726,2]
[321018786,1711777845787,-153.0,0.0004726,2]
[321018787,1711777845795,-153.0,0.0004726,2]
[321018788,1711777845804,-153.0,0.0004726,2]
[321018789,1711777845814,-153.0,0.0004726,2]
[321018790,1711777845823,-153.0,0.0004726,2]
[321018791,1711777845833,-153.0,0.0004726,2]
[321018792,1711777845842,-153.0,0.0004726,2]
[321018793,1711777845852,-153.0,0.0004726,2]
[321018794,1711777845918,-153.0,0.0004726,2]
[321018795,1711777845927,-153.0,0.0004726,2]
[321018796,1711777845937,-306.0,0.0004726,2]
[321018797,1711777845946,-153.0,0.0004726,2]
[321018798,1711777845955,-153.0,0.0004726,2]
[321018799,1711777845964,-153.0,0.0004726,2]
[321018800,1711777845973,-153.0,0.0004726,2]
[321018801,1711777845983,-153.0,0.0004726,2]
[321018802,1711777845992,-153.0,0.0004726,2]
[321018803,1711777846002,-153.0,0.0004726,2]
[321018804,1711777846013,-209.426309,0.0004726,2]
[321018805,1711777846022,-160.0,0.0004746,16]
[321018806,1711777846032,-998.0,0.000475,30]
[321018808,1711777846041,-151.0,0.00047668,8]
[321018809,1711777846052,-2800.0978,0.000478,90]
[321018810,1711777846061,-160.0,0.00047813,17]
[321018811,1711777846071,-196.843309,0.00047847,30]
[321018812,1711777846080,-1546.845017,0.00047847,30]
[321018813,1711777846091,-652.73846,0.00047847,30]
[321018814,1711777846100,-568.146578,0.00047847,30]
[321018815,1711777846110,-188.397758,0.00047847,30]
[321018816,1711777846118,-1308.47457386,0.000479,2]
[321018817,1711777846128,-662.77382893,0.00048,40]
[321018818,1711777846137,-2500.0,0.00048,2]
[321018819,1711777846147,-233805.42562591,0.00048,5]
[321018820,1711777846156,-3142.25878555,0.00048,2]
[321018821,1711777846165,-151.0,0.00048,7]
[321018822,1711777846174,-151.0,0.00048,7]
[321018823,1711777846184,-364.157193,0.00048,7]
[321018824,1711777846193,-364.157193,0.00048,7]
[321018825,1711777846202,-151.0,0.00048,7]
[321018826,1711777846211,-151.0,0.00048,7]
[321018827,1711777846221,-153.0,0.00048082,2]
[321018828,1711777846230,-153.0,0.00048082,2]
[321018830,1711777846239,-153.0,0.00048082,2]
[321018832,1711777846248,-153.0,0.00048082,2]
[321018834,1711777846257,-153.0,0.00048082,2]
[321018836,1711777846266,-153.0,0.00048082,2]
[321018837,1711777846275,-153.0,0.00048082,2]
[321018838,1711777846284,-153.0,0.00048082,2]
[321018840,1711777846294,-153.0,0.00048082,2]
[321018841,1711777846303,-153.0,0.00048082,2]
[321018842,1711777846312,-160.0,0.00048166,18]
[321018843,1711777846321,-163.161871,0.00048437,30]
[321018844,1711777846330,-196.843309,0.00048437,30]
[321018845,1711777846340,-1546.845017,0.00048437,30]
[321018846,1711777846349,-652.73846,0.00048437,30]
[321018847,1711777846359,-568.146578,0.00048437,30]
[321018848,1711777846369,-188.397758,0.00048437,30]
[321018849,1711777846378,-202.1506933,0.00048493,2]
[321018850,1711777846388,-160.0,0.0004852,19]
[321018851,1711777846397,-163.74726593,0.0004852,5]
[321018852,1711777846406,-5000.0,0.00048699,2]
[321018853,1711777846416,-2000.0,0.000487,120]
[321018854,1711777846426,-2000.0,0.000487,120]
[321018855,1711777846436,-2000.0,0.000487,120]
[321018856,1711777846445,-2000.0,0.000487,120]
[321018857,1711777846455,-2000.0,0.000487,120]
[321018858,1711777846464,-2000.0,0.000487,120]
[321018859,1711777846474,-2000.0,0.000487,120]
[321018860,1711777846484,-183.0,0.00048904,90]
[321018861,1711777846494,-153.0,0.00048904,2]
[321018862,1711777846503,-153.0,0.00048904,2]
[321018863,1711777846513,-153.0,0.00048904,2]
[321018864,1711777846523,-153.0,0.00048904,2]
[321018865,1711777846532,-153.0,0.00048904,2]
[321018866,1711777846541,-200.0,0.00048987,2]
[321018867,1711777846551,-190.728728,0.00048993,120]
[321018868,1711777846560,-400.0,0.00048996,2]
[321018869,1711777846569,-1596.06631795,0.00048999,4]
[321018870,1711777846579,-49850.01324887,0.00049,7]
[321018871,1711777846588,-16792.42511343,0.00049,30]
[321018872,1711777846597,-411.93381732,0.00049,120]
[321018873,1711777846607,-2745.353122,0.00049,68]
[321018874,1711777846616,-605.467,0.00049,120]
[321018875,1711777846626,-605.468,0.00049,120]
[321018876,1711777846635,-605.468,0.00049,120]
[321018877,1711777846645,-605.468,0.00049,120]
[321018878,1711777846654,-605.468,0.00049,120]
[321018879,1711777846664,-151.0,0.00049,7]
[321018880,1711777846673,-151.0,0.00049,7]
[321018881,1711777846682,-364.157193,0.00049,7]
[321018882,1711777846691,-364.157193,0.00049,7]
[321018883,1711777846701,-151.0,0.00049,7]
[321018884,1711777846710,-151.0,0.00049,7]
[321018885,1711777846719,-196.843309,0.00049028,30]
[321018886,1711777846728,-1546.845017,0.00049028,30]
[321018887,1711777846737,-652.73846,0.00049028,30]
[321018888,1711777846746,-568.146578,0.00049028,30]
[321018889,1711777846755,-188.397758,0.00049028,30]
[321018890,1711777846764,-3000.0,0.000494,10]
[321018891,1711777846774,-2199.9022,0.0004958,90]
[321018892,1711777846783,-163.161871,0.00049619,30]
[321018893,1711777846793,-196.843309,0.00049619,30]
[321018894,1711777846802,-1546.845017,0.00049619,30]
[321018895,1711777846811,-652.73846,0.00049619,30]
[321018896,1711777846821,-568.146578,0.00049619,30]
[321018897,1711777846830,-188.397758,0.00049619,30]
[321018898,1711777846839,-306.0,0.00049726,2]
[321018899,1711777846848,-215678.24895874,0.0004988,2]
[321018900,1711777846868,-576.6873628,0.0004988,2]
[321018905,1711778028881,9533.30342734,0.0002,2]
[321018907,1711778050953,36181.00120363,0.00040891,60]
[321018909,1711778056284,3745.97975875,0.000125,2]
[321018910,1711778073228,538.31281746,0.00040891,120]
[321018975,1711779038307,-753.51860148,0.00036999,4]
[321018976,1711779038320,-1440.93009356,0.00037,30]
[321018977,1711779038330,-398.30973302,0.00038791,2]
[321018978,1711779038340,-190.728728,0.00039889,120]
[321018979,1711779038351,-162.517667,0.0004,2]
[321018980,1711779038363,-162.0,0.0004,2]
[321018981,1711779038373,-216.52051776,0.00040889,4]
[321018982,1711779038384,-155.0,0.00040891,4]
[321018983,1711779038395,-154.98450155,0.00040891,4]
[321018984,1711779038406,-28894.94971991,0.00040983,2]
[321018985,1711779038416,-166.666666,0.00041096,2]
[321018986,1711779038426,-166.666666,0.00042058,2]
[321018987,1711779038436,-166.666666,0.00043019,2]
[321018988,1711779038446,-398.30973302,0.00043791,2]
[321018989,1711779038455,-166.666666,0.00043981,2]
[321018992,1711779038545,-153.0,0.00044795,2]
[321018993,1711779038556,-166.666666,0.00044942,2]
[321018994,1711779038566,-153.0,0.00045616,2]
[321018995,1711779038576,-166.666666,0.00045904,2]
[321018996,1711779038585,-254.24107,0.00046575,2]
[321018997,1711779038596,-183.0,0.00047,90]
[321018998,1711779038605,-215.80531862,0.00047999,4]
[321018999,1711779038615,-250.44424522,0.00048479,8]
[321019000,1711779038624,-150.0,0.00049,68]
[321019001,1711779038634,-10000.0,0.000495,10]
[321019002,1711779038643,-23725.01008679,0.0004988,2]
[321019080,1711779043690,-16947.49190517,0.0004988,2]
[321019110,1711779360500,-154.9690062,0.00039999,4]
[321019111,1711779360532,-27.5443206,0.0004,2]
[321019112,1711779360545,-134.9733464,0.0004,2]
[321019113,1711779360554,-19.9956598,0.00040891,4]
[321019114,1711779360565,-135.75632381,0.00040891,4]
[321019115,1711779360574,-26.76134319,0.00040892,2]
[321019116,1711779392303,-2187.4866732,0.00040892,2]
[321019145,1711780009192,-150.0,0.00038792,2]
[321019146,1711780009212,-162.0,0.0004,2]
[321019147,1711780009233,-664.93574095,0.00040892,2]
[321019148,1711780009252,-685.10434593,0.00040991,30]
[321019149,1711780009272,-154.253165,0.00043717,30]
[321019150,1711780009291,-152.094495,0.00043717,30]
[321019151,1711780009311,-150.0,0.00043792,2]
[321019152,1711780009406,-166.666666,0.00044025,2]
[321019153,1711780009427,-5803.81716164,0.00044262,4]
[321019277,1711780232566,-17142.88368111,0.00044262,4]
[321019279,1711780232576,-154.253165,0.00044263,30]
[321019281,1711780232585,-152.094495,0.00044263,30]
[321019283,1711780232594,-2550.76865889,0.00044305,2]
[321019379,1711780243727,-1816.89835381,0.00044305,2]
[321019380,1711780243738,-154.253165,0.00044809,30]
[321019381,1711780243749,-152.094495,0.00044809,30]
[321019382,1711780243759,-166.666666,0.00045226,2]
[321019383,1711780243768,-154.253165,0.00045356,30]
[321019384,1711780243778,-152.094495,0.00045356,30]
[321019385,1711780243787,-154.253165,0.00045902,30]
[321019387,1711780243796,-152.094495,0.00045902,30]
[321019389,1711780243805,-166.666666,0.00046426,2]
[321019390,1711780243815,-254.24107,0.00046575,2]
[321019392,1711780243827,-522.2194426,0.00047415,2]
[321019393,1711780243836,-166.666666,0.00047626,2]
[321019394,1711780243846,-166.666666,0.00048826,2]
[321019395,1711780243855,-3909.80306411,0.0004988,2]
[321019396,1711780243888,-15024.10750665,0.0004988,2]
[321019405,1711780246557,-617.12259317,0.0004988,2]
[321019418,1711781233798,10000.0,0.00032,2]
[321019419,1711781236351,150.0,0.000299,2]
[321020054,1711781443816,-685.10434593,0.000396,3]
[321020056,1711781443825,-162.0,0.0004,2]
[321020058,1711781443836,-167.14007523,0.0004,4]
[321020060,1711781443844,-10011.99605098,0.000429,90]
[321020062,1711781443855,-998.0,0.0004749,30]
[321020064,1711781443867,-664.93574095,0.00047581,2]
[321020066,1711781443876,-166.666666,0.0004763,2]
[321020068,1711781443885,-166.666666,0.00048928,2]
[321020070,1711781443894,-6672.82170464,0.00049,34]
[321020072,1711781443903,-15648.5772812,0.0004988,2]
[321020075,1711781443917,-20211.28525051,0.0004988,2]
[321020984,1711782631064,-17335.18097118,0.00038888,44]
[321021005,1711782631883,-1800.09666677,0.00038887,4]
[321021006,1711782631894,-162.0,0.0004,2]
[321021007,1711782631904,-2852.95177588,0.00040987,3]
[321021008,1711782631914,-166.666666,0.00042242,2]
[321021009,1711782631925,-166.666666,0.00043394,2]
[321021010,1711782631934,-165.259728,0.00043717,30]
[321021011,1711782631944,-398.970641,0.00043717,30]
[321021012,1711782631954,-155.99018198,0.00043996,4]
[321021013,1711782631964,-231.58401745,0.00043996,4]
[321021014,1711782631974,-1858.62237315,0.00043996,4]
[321021015,1711782631984,-155.18037566,0.00043997,4]
[321021016,1711782631996,-45705.72894911,0.00043998,2]
[321021017,1711782632006,-500.0,0.00043999,120]
[321021018,1711782632016,-547.40979062,0.00043999,120]
[321021019,1711782632025,-18340.1725687,0.00044,2]
[321021020,1711782632039,-12332.64711139,0.00044,2]
[321021115,1711782637882,-4956.07254271,0.00044,2]
[321021122,1711782637941,-432.25340078,0.00044,2]
[321021126,1711782637968,-500.0,0.00044,2]
[321021320,1711782640119,-735.93380102,0.00044,2]
[321021508,1711782643082,-48272.9452573,0.00044,2]
[321021510,1711782643114,-1557.74146195,0.00044,2]
[321021512,1711782643126,-1804.323423,0.00044,2]
[321021513,1711782643138,-25923.88434471,0.00044,2]
[321021558,1711783117007,155.81974447,0.0003,2]
[321021571,1711783586509,150.0,0.000279,2]
[321021572,1711783750186,-162.0,0.0004,2]
[321021573,1711783750207,-166.666666,0.00042145,2]
[321021574,1711783750227,-4068.72289511,0.00042932,2]
[321021610,1711783832218,-523.202,0.00042998,2]
[321021668,1711783838160,-991.02413883,0.00042998,2]
[321021706,1711783843495,-1557.74146195,0.00042998,2]
[321021707,1711783843508,-1804.323423,0.00042998,2]
[321021708,1711783843520,-15472.27334702,0.00042998,2]
[321021709,1711783843529,-166.666666,0.00043294,2]
[321021710,1711783843538,-152.094496,0.00043717,30]
[321021711,1711783843547,-154.253168,0.00043717,30]
[321021712,1711783843556,-313.69499149,0.00043899,2]
[321021713,1711783843565,-313.69499145,0.00043899,2]
[321021714,1711783843574,-313.69499145,0.000439,2]
[321021715,1711783843584,-313.69499145,0.000439,2]
[321021716,1711783843593,-313.69499145,0.000439,2]
[321021717,1711783843603,-5803.81716164,0.00043997,4]
[321021718,1711783843613,-155.72920344,0.00043998,120]
[321021719,1711783843622,-2450.57534532,0.00043998,2]
[321021726,1711783846284,-2408.2817314,0.00043998,2]
[321021727,1711783846297,-141.14292328,0.00043998,2]
[321021728,1711783846306,-1534.27707672,0.00043999,2]
[321021732,1711784469968,5577.0,0.00032,2]
[321021741,1711784918508,10000.0,0.00032,2]
[321021742,1711784924172,10000.0,0.00032,2]
[321021743,1711784929591,10000.0,0.00032,2]
[321021744,1711784935216,10000.0,0.00032,2]
[321021745,1711784940704,10000.0,0.00032,2]
[321021746,1711784946923,10000.0,0.00032,2]
[321021757,1711784952943,10000.0,0.00032,2]
[321021758,1711784958740,10000.0,0.00032,2]
[321021759,1711784965191,842.2388313,0.00031999,4]
[321021760,1711784968423,475.54,0.00032,2]
[321021778,1711785032313,-652.46831196,0.00038999,2]
[321021779,1711785032324,-74.42278717,0.00039,7]
[321022049,1711785040472,-925.57721283,0.00039,7]
[321022051,1711785040481,-162.0,0.0004,2]
[321022054,1711785040491,-946.26814738,0.0004094,30]
[321022056,1711785040501,-979.84105643,0.00040948,30]
[321022058,1711785040511,-166.666666,0.00041829,2]
[321022060,1711785040520,-167.658933,0.00041864,2]